bitfinex-derivatives/quotes_SOLF0:USTF0_20250624
["timestamp","ask_amount","ask_price","bid_price","bid_amount"]
[1750792237755,6.9651,143.5,143.45,35.98]
[1750792237955,738.78,143.58,143.48,4.45590448]
[1750792237956,41.58878612,143.55,143.48,4.45590448]
[1750792238151,40.37590448,143.55,143.48,4.45590448]
[1750792238348,40.37590448,143.55,143.48,11.42160448]
[1750792238552,6.9647,143.51,143.48,11.42160448]
[1750792239356,6.964,143.52,143.49,6.9654]
[1750792240561,6.964,143.52,143.5,6.9649]
[1750792242361,6.964,143.52,143.49,6.9652]
[1750792242763,6.9644,143.51,143.49,6.9652]
[1750792245065,6.9641,143.52,143.49,6.9652]
[1750792245365,6.9641,143.52,143.5,6.9649]
[1750792248165,35.9,143.55,143.51,6.9642]
[1750792248365,4.45590448,143.57,143.5,4.45590448]
[1750792248571,6.9627,143.55,143.52,6.9639]
[1750792248768,6.9627,143.55,143.5,42.69880448]
[1750792249071,6.9624,143.56,143.53,6.9632]
[1750792249273,4.45590448,143.57,143.53,6.9632]
[1750792249761,6.9621,143.56,143.53,6.9632]
[1750792250163,6.9626,143.55,143.5,44.97330448]
[1750792250673,35.9,143.58,143.5,44.97330448]
[1750792250863,6.9622,143.56,143.5,44.97330448]
[1750792251762,6.9622,143.56,143.53,6.9631]
[1750792253972,6.9618,143.57,143.52,4.45590448]
[1750792254470,4.45590448,143.6,143.54,4.45590448]
[1750792254667,35.9,143.61,143.54,40.35590448]
[1750792254971,35.9,143.61,143.55,4.6774]
[1750792255277,35.9,143.61,143.55,6.9102]
[1750792255473,35.9,143.61,143.56,4.45590448]
[1750792255674,4.45590448,143.62,143.56,4.45590448]
[1750792255981,40.35590448,143.64,143.56,4.45590448]
[1750792256472,6.96,143.61,143.58,6.9608]
[1750792258475,6.9606,143.59,143.55,6.9102]
[1750792258684,4.45590448,143.62,143.55,11.36610448]
[1750792259271,4.45590448,143.62,143.53,40.35590448]
[1750792259476,6.9615,143.58,143.55,6.9625]
[1750792259975,6.963,143.54,143.53,35.9]
[1750792260173,40.35590448,143.59,143.53,35.9]
[1750792261476,6.9628,143.55,143.53,42.8634]
[1750792262474,6.9628,143.55,143.53,35.9]
[1750792262677,6.9623,143.56,143.53,35.9]
[1750792263270,6.9623,143.56,143.53,42.8632]
[1750792263466,6.9626,143.55,143.53,35.9]
[1750792263769,35.9,143.59,143.53,35.9]
[1750792263970,6.9639,143.52,143.51,2.3967]
[1750792264180,4.45590448,143.55,143.5,160.01037129]
[1750792264481,6.9637,143.53,143.5,166.97497129]
[1750792265376,6.9637,143.53,143.51,6.9643]
[1750792266482,6.9631,143.54,143.51,6.9643]
[1750792268784,6.9635,143.53,143.51,6.9643]
[1750792269480,6.9632,143.54,143.51,6.9643]
[1750792270377,6.9632,143.54,143.52,6.9638]
[1750792271385,6.9628,143.55,143.52,6.9638]
[1750792271587,4.45590448,143.56,143.52,6.9638]
[1750792272287,6.9626,143.55,143.5,160.01037129]
[1750792272483,4.45590448,143.56,143.5,160.01037129]
[1750792272684,6.9638,143.53,143.51,6.9644]
[1750792272987,4.45590448,143.55,143.51,6.9644]
[1750792273783,6.9633,143.54,143.51,6.9644]
[1750792274985,6.9636,143.53,143.5,42.8647]
[1750792276697,6.9636,143.53,143.51,6.9644]
[1750792276897,6.9636,143.53,143.5,35.9]
[1750792277090,6.9636,143.53,143.5,42.8647]
[1750792277287,6.9642,143.52,143.5,42.8647]
[1750792277491,6.9642,143.52,143.5,35.9]
[1750792277685,4.45590448,143.55,143.49,6.9651]
[1750792277686,40.29590448,143.55,143.49,6.9651]
[1750792277887,6.9644,143.52,143.49,6.9651]
[1750792278183,40.29590448,143.55,143.48,6.9657]
[1750792278184,4.45590448,143.53,143.48,6.9657]
[1750792278486,6.9643,143.52,143.47,51.45159205]
[1750792278797,6.9643,143.52,143.48,8.68669205]
[1750792278994,6.9643,143.52,143.49,6.9652]
[1750792279299,6.9645,143.51,143.49,6.9652]
[1750792282288,6.9645,143.51,143.48,15.65239205]
[1750792283187,6.9645,143.51,143.49,6.9654]
[1750792286297,6.9645,143.51,143.49,15.65209205]
[1750792286799,6.9638,143.53,143.51,6.9644]
[1750792287201,35.84,143.55,143.5,8.68669205]
[1750792287403,6.9637,143.53,143.51,6.9644]
[1750792293306,6.9632,143.54,143.51,6.9644]
[1750792293599,35.84,143.55,143.51,8.68669205]
[1750792293997,6.9632,143.54,143.51,8.68669205]
[1750792294808,6.9637,143.53,143.51,8.68669205]
[1750792295405,6.9632,143.54,143.5,8.68669205]
[1750792296199,6.9635,143.53,143.51,6.9642]
[1750792296505,35.84,143.55,143.5,8.68669205]
[1750792296904,6.9642,143.52,143.5,8.68669205]
[1750792297207,35.84,143.55,143.5,8.68669205]
[1750792297603,6.9642,143.52,143.5,8.68669205]
[1750792297905,4.44562612,143.54,143.49,8.68669205]
[1750792298100,4.44562612,143.54,143.49,6.9653]
[1750792298605,6.9637,143.53,143.5,15.65129205]
[1750792300307,40.24562612,143.58,143.51,8.68669205]
[1750792300504,7.86288907,143.57,143.51,8.68669205]
[1750792300703,6.9628,143.55,143.51,8.68669205]
[1750792301204,4.44562612,143.54,143.49,8.68669205]
[1750792301408,4.44667155,143.54,143.5,8.68669205]
[1750792301609,4.44667155,143.54,143.48,12.91000568]
[1750792301610,6.9649,143.5,143.49,8.68669205]
[1750792307606,35.8,143.54,143.49,12.91000568]
[1750792307806,35.8,143.54,143.51,8.68136981]
[1750792308010,6.9635,143.53,143.51,8.68136981]
[1750792309811,6.9635,143.53,143.51,15.64546981]
[1750792310308,35.8,143.57,143.51,17.35711484]
[1750792310507,13.9209,143.6,143.54,8.68237083]
[1750792310508,7.8668477,143.56,143.54,8.68237083]
[1750792310713,6.9613,143.58,143.54,15.25000568]
[1750792310913,6.9613,143.58,143.56,8.67984409]
[1750792311903,6.9613,143.58,143.56,15.64184409]
[1750792312803,6.9613,143.58,143.56,8.67984409]
[1750792313313,6.9615,143.57,143.56,8.67984409]
[1750792313514,6.9615,143.57,143.55,15.64204409]
[1750792313716,6.9615,143.57,143.55,8.67984409]
[1750792313913,6.962,143.56,143.54,11.01984409]
[1750792315310,6.962,143.56,143.54,2.34]
[1750792315611,6.962,143.56,143.54,11.01984409]
[1750792315813,6.962,143.56,143.54,2.34]
[1750792317913,11.40880916,143.57,143.54,9.3029]
[1750792318105,11.40880916,143.57,143.54,17.98274409]
[1750792318501,4.44710916,143.57,143.54,17.98274409]
[1750792319108,6.9621,143.56,143.54,11.01984409]
[1750792319912,6.9621,143.56,143.54,2.34]
[1750792320615,6.9621,143.56,143.54,11.01984409]
[1750792320807,6.9621,143.56,143.54,17.98284409]
[1750792324010,6.9617,143.57,143.55,6.9625]
[1750792324414,4.44710916,143.59,143.55,6.9625]
[1750792324715,6.9617,143.57,143.55,15.64234409]
[1750792324912,35.8,143.6,143.53,8.67984409]
[1750792324913,4.44710916,143.56,143.53,8.67984409]
[1750792325119,4.44710916,143.54,143.52,8.67984409]
[1750792325320,4.44710916,143.54,143.51,8.67984409]
[1750792326014,4.44710916,143.54,143.5,46.70494409]
[1750792326215,35.78,143.56,143.5,53.66954409]
[1750792326413,4.44710916,143.54,143.5,53.66954409]
[1750792327122,4.44710916,143.54,143.5,46.70494409]
[1750792327320,4.44710916,143.54,143.49,15.64504409]
[1750792327516,4.44710916,143.54,143.5,8.67984409]
[1750792327820,6.9644,143.51,143.5,8.67984409]
[1750792328220,4.44710916,143.54,143.5,8.67984409]
[1750792328412,6.9643,143.52,143.5,8.67984409]
[1750792328613,6.9643,143.52,143.49,15.64504409]
[1750792329607,6.9643,143.52,143.5,8.67984409]
[1750792330716,6.9643,143.52,143.5,15.64464409]
[1750792335626,6.9644,143.51,143.5,8.67984409]
[1750792335832,4.44710916,143.52,143.5,8.67984409]
[1750792336226,11.41140916,143.52,143.5,15.64444409]
[1750792336843,40.22710916,143.56,143.51,8.67984409]
[1750792337133,40.22710916,143.56,143.52,8.67984409]
[1750792337333,6.9629,143.55,143.52,15.64344409]
[1750792337632,4.44710916,143.54,143.51,8.67984409]
[1750792337831,4.44710916,143.54,143.5,8.67984409]
[1750792338335,4.44710916,143.52,143.5,8.67984409]
[1750792338627,6.9647,143.51,143.49,8.67984409]
[1750792340526,6.9647,143.51,143.48,15.64554409]
[1750792341126,6.9649,143.5,143.48,15.64554409]
[1750792344436,6.9647,143.51,143.48,15.64554409]
[1750792346931,6.9647,143.51,143.49,6.9654]
[1750792348239,6.9649,143.5,143.48,15.64554409]
[1750792348839,6.9654,143.49,143.48,8.67984409]
[1750792349138,4.44710916,143.5,143.46,11.05124409]
[1750792349730,4.44710916,143.5,143.46,8.67984409]
[1750792349935,4.44710916,143.48,143.45,8.67984409]
[1750792350833,4.44710916,143.48,143.44,15.64744409]
[1750792351033,6.9672,143.46,143.44,8.67984409]
[1750792351339,4.44710916,143.49,143.44,8.67984409]
[1750792351845,4.44710916,143.49,143.44,15.64754409]
[1750792352634,4.44710916,143.47,143.44,8.67984409]
[1750792352837,40.18710916,143.47,143.43,8.67984409]
[1750792353142,6.9677,143.45,143.42,18.07094409]
[1750792353344,40.18710916,143.47,143.42,18.07094409]
[1750792354038,40.18710916,143.47,143.42,9.3911]
[1750792354345,6.9679,143.44,143.42,9.3911]
[1750792355843,6.9683,143.43,143.41,42.7091]
[1750792356648,6.9683,143.43,143.41,6.9691]
[1750792357149,6.9688,143.42,143.39,15.64974409]
[1750792357338,4.44710916,143.43,143.39,8.67984409]
[1750792357542,35.74,143.43,143.38,2.2309]
[1750792357744,4.44710916,143.41,143.37,8.67984409]
[1750792358440,6.9698,143.4,143.37,6.971]
[1750792358946,6.9698,143.4,143.36,8.67984409]
[1750792359246,4.44710916,143.41,143.36,8.67984409]
[1750792359438,4.44710916,143.41,143.35,10.97734409]
[1750792359738,6.97,143.4,143.37,6.9709]
[1750792360542,4.44710916,143.45,143.37,4.44710916]
[1750792360752,4.44710916,143.45,143.38,37.9777]
[1750792361247,4.44710916,143.43,143.4,6.9695]
[1750792361750,6.9691,143.42,143.39,6.97]
[1750792361945,4.44710916,143.43,143.39,6.97]
[1750792362946,4.44710916,143.43,143.38,2.2577]
[1750792363150,4.45647477,143.39,143.36,8.67984409]
[1750792363450,6.9731,143.34,143.29,13.45284409]
[1750792363848,4.45817882,143.35,143.29,4.773]
[1750792364048,2.2661,143.38,143.29,4.773]
[1750792364349,4.45817882,143.34,143.29,4.773]
[1750792364651,11.43107882,143.34,143.29,11.7478]
[1750792365250,4.45817882,143.35,143.29,4.773]
[1750792367248,6.9735,143.33,143.29,11.748]
[1750792371255,6.974,143.32,143.29,11.748]
[1750792371756,6.9735,143.33,143.29,151.268]
[1750792372558,6.9735,143.33,143.3,6.9746]
[1750792372756,6.9724,143.35,143.29,144.293]
[1750792372956,4.45817882,143.37,143.3,6.77037882]
[1750792373363,11.42967882,143.37,143.3,6.77037882]
[1750792373564,11.42967882,143.37,143.34,6.9725]
[1750792374253,11.42967882,143.37,143.34,9.3283]
[1750792375062,6.9718,143.36,143.34,2.3558]
[1750792376655,11.42947882,143.37,143.34,9.3284]
[1750792376961,41.83817882,143.39,143.34,2.3558]
[1750792377261,6.9717,143.36,143.34,9.3284]
[1750792381562,6.9715,143.37,143.34,9.3284]
[1750792382054,41.83817882,143.39,143.34,9.3284]
[1750792382656,6.9717,143.37,143.34,9.3284]
[1750792383064,6.9715,143.37,143.34,9.3284]
[1750792383862,6.9719,143.36,143.34,2.3558]
[1750792384362,6.9714,143.37,143.34,9.3282]
[1750792384564,6.9714,143.37,143.34,2.3558]
[1750792385263,6.9714,143.37,143.35,6.9722]
[1750792385562,6.9714,143.37,143.34,2.3558]
[1750792385563,41.83817882,143.39,143.36,6.9714]
[1750792385863,4.45817882,143.41,143.36,6.9714]
[1750792386060,4.45817882,143.39,143.34,11.5632]
[1750792386259,4.45817882,143.37,143.34,2.3558]
[1750792386449,4.45817882,143.37,143.31,37.4]
[1750792386650,6.973,143.34,143.31,37.4]
[1750792386854,6.973,143.34,143.31,44.3739]
[1750792387259,4.45817882,143.35,143.31,37.4]
[1750792389157,41.85817882,143.37,143.31,37.4]
[1750792389366,6.9725,143.35,143.31,37.4]
[1750792389760,41.85817882,143.37,143.31,37.4]
[1750792390864,6.9725,143.35,143.32,6.9734]
[1750792391163,41.85817882,143.37,143.32,6.9734]
[1750792391556,41.85817882,143.37,143.31,44.3739]
[1750792391756,6.9731,143.34,143.31,44.3739]
[1750792392959,6.9735,143.33,143.31,37.4]
[1750792393158,4.45817882,143.33,143.29,4.6167]
[1750792393359,6.9745,143.31,143.29,2.3819]
[1750792393568,4.45817882,143.33,143.29,2.3819]
[1750792393862,6.9746,143.3,143.25,13.13802291]
[1750792394059,4.45817882,143.31,143.24,42.0601]
[1750792394262,4.45817882,143.29,143.24,42.0601]
[1750792394466,37.4,143.28,143.21,9.024e-05]
[1750792394964,37.4,143.28,143.22,6.9785]
[1750792395160,37.4,143.28,143.21,9.024e-05]
[1750792395161,4.45817882,143.27,143.21,9.024e-05]
[1750792395470,4.45817882,143.25,143.21,9.024e-05]
[1750792395966,6.9777,143.24,143.21,6.97899024]
[1750792396266,4.45817882,143.25,143.21,6.97899024]
[1750792396466,41.85817882,143.28,143.21,4.45826906]
[1750792396962,41.85817882,143.28,143.22,4.6786]
[1750792397265,37.4,143.28,143.22,42.0786]
[1750792397658,44.3757,143.28,143.25,6.9768]
[1750792397863,6.9757,143.28,143.25,6.9768]
[1750792398165,4.45817882,143.31,143.23,4.45817882]
[1750792398360,4.45817882,143.31,143.24,2.3469]
[1750792398557,6.9756,143.28,143.25,6.9768]
[1750792399265,4.45817882,143.29,143.25,6.9768]
[1750792399766,4.45817882,143.29,143.26,6.9764]
[1750792400555,4.45817882,143.29,143.25,6.9769]
[1750792400759,4.45817882,143.27,143.22,39.7453]
[1750792400959,4.45817882,143.27,143.22,37.4]
[1750792401161,6.9774,143.25,143.22,37.4]
[1750792402367,6.9774,143.25,143.22,44.3784]
[1750792402565,11.43497882,143.26,143.22,37.4]
[1750792402769,4.45817882,143.26,143.22,37.4]
[1750792404063,11.43507882,143.26,143.22,37.4]
[1750792404468,4.45817882,143.26,143.22,37.4]
[1750792404669,6.9773,143.25,143.22,44.3783]
[1750792405371,6.978,143.23,143.21,9.024e-05]
[1750792407472,6.9785,143.22,143.21,9.024e-05]
[1750792407677,4.45817882,143.24,143.21,9.024e-05]
[1750792409276,6.9781,143.23,143.21,6.97879024]
[1750792409673,37.42,143.28,143.21,9.024e-05]
[1750792409876,4.45817882,143.27,143.21,9.024e-05]
[1750792410177,6.9764,143.27,143.21,4.45826906]
[1750792410373,37.42,143.28,143.21,4.45826906]
[1750792410769,6.9763,143.27,143.24,6.9773]
[1750792411470,6.9758,143.28,143.21,4.45826906]
[1750792411678,4.45817882,143.3,143.23,4.45817882]
[1750792411884,4.45817882,143.28,143.23,6.9779]
[1750792412665,6.9769,143.26,143.23,6.9779]
[1750792413181,6.9771,143.25,143.23,6.9779]
[1750792415474,6.9768,143.26,143.23,6.9779]
[1750792415871,4.45817882,143.28,143.23,6.9779]
[1750792416272,4.45817882,143.28,143.21,9.024e-05]
[1750792416273,4.45817882,143.24,143.21,9.024e-05]
[1750792416474,37.42,143.27,143.21,9.024e-05]
[1750792416475,4.45817882,143.25,143.21,9.024e-05]
[1750792417475,6.9785,143.22,143.21,9.024e-05]
[1750792418577,4.45817882,143.25,143.21,9.024e-05]
[1750792419081,6.9785,143.22,143.21,9.024e-05]
[1750792419387,4.45817882,143.25,143.21,9.024e-05]
[1750792419578,6.9778,143.24,143.21,9.024e-05]
[1750792419778,4.45817882,143.25,143.21,9.024e-05]
[1750792420787,42.0637,143.27,143.21,9.024e-05]
[1750792421080,4.45817882,143.26,143.21,9.024e-05]
[1750792422284,6.9777,143.24,143.21,6.97889024]
[1750792422884,11.43667882,143.22,143.21,9.024e-05]
[1750792423185,4.45817882,143.24,143.21,9.024e-05]
[1750792423386,6.9785,143.22,143.21,9.024e-05]
[1750792425389,11.43667882,143.22,143.21,9.024e-05]
[1750792426392,6.9785,143.22,143.21,9.024e-05]
[1750792430085,38.92,143.24,143.21,9.024e-05]
[1750792430286,9.10187882,143.27,143.21,9.024e-05]
[1750792430688,6.9774,143.25,143.21,9.024e-05]
[1750792431096,6.9774,143.25,143.22,6.9783]
[1750792431890,6.9766,143.26,143.21,9.024e-05]
[1750792432096,4.45817882,143.27,143.21,4.45826906]
[1750792432296,38.94,143.29,143.22,2.2672]
[1750792432590,6.9762,143.27,143.22,2.2672]
[1750792432793,6.9762,143.27,143.22,6.72537882]
[1750792432982,6.9762,143.27,143.25,6.9768]
[1750792433387,6.9759,143.28,143.25,6.9768]
[1750792433587,43.39817882,143.29,143.25,6.9768]
[1750792434400,6.9761,143.28,143.25,6.9768]
[1750792434593,43.39817882,143.29,143.22,13.19451731]
[1750792434795,123.09729084,143.31,143.24,10.92731731]
[1750792434796,130.07159084,143.31,143.24,10.92731731]
[1750792434985,130.07159084,143.31,143.26,4.45817882]
[1750792435189,130.07159084,143.31,143.29,6.9749]
[1750792435396,123.09729084,143.31,143.26,4.45817882]
[1750792435597,43.37817882,143.33,143.26,10.92731731]
[1750792436191,43.37817882,143.33,143.29,6.9749]
[1750792436494,38.92,143.33,143.28,4.45817882]
[1750792436687,2.47569384,143.34,143.28,10.92731731]
[1750792436892,4.45817882,143.35,143.29,2.2449]
[1750792437394,4.45817882,143.35,143.29,8.71403849]
[1750792437596,4.45817882,143.39,143.3,10.92731731]
[1750792437794,6.9721,143.36,143.33,6.9729]
[1750792437999,4.45817882,143.39,143.33,6.9729]
[1750792438391,6.9715,143.37,143.33,6.9729]
[1750792438600,6.9715,143.37,143.34,6.9727]
[1750792438802,44.59235114,143.41,143.33,6.46913849]
[1750792439002,5.22474605,143.4,143.33,6.46913849]
[1750792439300,43.37817882,143.41,143.35,6.9719]
[1750792439502,6.9709,143.38,143.35,6.9719]
[1750792439702,43.37817882,143.41,143.36,6.9717]
[1750792439997,43.37817882,143.41,143.33,8.80653849]
[1750792440194,6.9706,143.39,143.36,6.9716]
[1750792440393,43.37817882,143.41,143.34,10.92731731]
[1750792440592,43.37817882,143.41,143.35,2.339]
[1750792440995,6.9706,143.39,143.36,6.9715]
[1750792441602,43.37817882,143.41,143.35,2.339]
[1750792441798,4.45817882,143.39,143.33,2.3374]
[1750792441992,4.45817882,143.39,143.3,45.72957882]
[1750792442596,6.9725,143.35,143.32,6.9734]
[1750792442996,6.9725,143.35,143.3,41.2714]
[1750792442997,6.9726,143.35,143.3,41.2714]
[1750792443197,4.45817882,143.37,143.3,41.2714]
[1750792443403,5.25860721,143.39,143.3,41.2714]
[1750792443404,4.45817882,143.39,143.31,4.45817882]
[1750792444103,4.45817882,143.37,143.3,41.2714]
[1750792444999,6.9723,143.35,143.31,6.9739]
[1750792445403,6.9723,143.35,143.3,41.2714]
[1750792445803,6.9723,143.35,143.31,4.45817882]
[1750792445999,4.45817882,143.39,143.3,41.2714]
[1750792446202,43.37817882,143.41,143.35,6.972]
[1750792447102,6.9708,143.38,143.35,6.972]
[1750792449211,6.9705,143.39,143.35,2.3751]
[1750792449510,6.97,143.4,143.35,6.83327882]
[1750792449709,6.97,143.4,143.35,9.19157882]
[1750792450112,4.45817882,143.41,143.35,9.19157882]
[1750792450113,6.9695,143.41,143.35,9.19157882]
[1750792450409,4.45817882,143.43,143.37,4.45817882]
[1750792451113,6.9691,143.42,143.39,6.9698]
[1750792451408,4.45817882,143.45,143.37,4.45817882]
[1750792451606,6.969,143.42,143.39,6.97]
[1750792453014,6.969,143.42,143.4,6.9697]
[1750792453617,6.969,143.42,143.39,6.9701]
[1750792455015,6.969,143.42,143.4,6.9697]
[1750792457905,4.45817882,143.45,143.39,4.45817882]
[1750792458105,40.4658,143.46,143.39,4.45817882]
[1750792458106,38.24,143.46,143.39,4.45817882]
[1750792458518,6.9681,143.44,143.42,6.9687]
[1750792459410,38.24,143.46,143.43,6.9683]
[1750792459617,4.45817882,143.48,143.41,4.45817882]
[1750792460018,6.9676,143.45,143.42,6.9684]
[1750792460318,6.9676,143.45,143.41,4.45817882]
[1750792460705,6.9671,143.46,143.41,4.45817882]
[1750792460909,38.24,143.49,143.42,40.6225]
[1750792461110,38.24,143.49,143.42,42.9343]
[1750792461314,6.9661,143.48,143.45,6.967]
[1750792461620,42.69817882,143.52,143.45,4.45817882]
[1750792461812,6.9652,143.5,143.48,6.9659]
[1750792462522,6.9655,143.49,143.47,6.9662]
[1750792462724,38.24,143.52,143.47,6.9662]
[1750792463217,6.9653,143.5,143.47,6.9662]
[1750792463421,38.24,143.52,143.47,6.9662]
[1750792464125,38.24,143.52,143.46,45.2066]
[1750792464428,38.24,143.52,143.46,38.24]
[1750792464625,42.69817882,143.52,143.47,6.9663]
[1750792464922,6.9653,143.5,143.47,6.9663]
[1750792466014,6.9653,143.5,143.48,6.9658]
[1750792466821,6.9642,143.52,143.46,38.24]
[1750792467019,123.96867912,143.55,143.47,4.45817882]
[1750792467316,6.9654,143.49,143.48,2.3913]
[1750792467524,4.45817882,143.5,143.45,38.22]
[1750792468409,6.9668,143.47,143.45,38.22]
[1750792468620,6.9668,143.47,143.44,6.9676]
[1750792468818,4.45817882,143.52,143.45,4.45817882]
[1750792469018,6.9659,143.49,143.45,4.45817882]
[1750792469219,4.45817882,143.5,143.43,6.85477882]
[1750792469822,6.9661,143.48,143.46,6.9668]
[1750792470023,4.45817882,143.5,143.46,6.9668]
[1750792470421,6.9658,143.49,143.46,6.9668]
[1750792470621,4.45817882,143.5,143.46,6.9668]
[1750792470821,4.45817882,143.5,143.43,6.85477882]
[1750792471220,6.9665,143.47,143.44,6.9675]
[1750792471523,6.9665,143.47,143.43,6.85477882]
[1750792472024,6.9665,143.47,143.44,6.9673]
[1750792472525,4.45817882,143.48,143.42,38.22]
[1750792473120,6.967,143.46,143.43,6.9681]
[1750792473830,38.22,143.5,143.43,4.45817882]
[1750792474129,6.9656,143.49,143.46,6.9666]
[1750792474323,6.9656,143.49,143.43,4.45817882]
[1750792474515,38.22,143.5,143.43,4.45817882]
[1750792474717,6.9662,143.48,143.43,4.45817882]
[1750792475019,38.22,143.5,143.43,4.45817882]
[1750792475820,4.7850236,143.54,143.47,4.45817882]
[1750792476027,43.54733646,143.53,143.47,4.45817882]
[1750792476226,38.22,143.53,143.47,4.45817882]
[1750792476525,6.9642,143.52,143.49,6.9652]
[1750792476722,38.22,143.56,143.49,4.45817882]
[1750792476926,5.32634131,143.55,143.5,2.284]
[1750792477121,6.9627,143.55,143.5,2.284]
[1750792477520,6.9627,143.55,143.51,4.45817882]
[1750792478122,6.9627,143.55,143.52,6.9636]
[1750792478522,6.9627,143.55,143.51,4.45817882]
[1750792478929,38.22,143.56,143.5,40.504]
[1750792479126,38.22,143.56,143.47,6.69457882]
[1750792479127,4.45817882,143.53,143.47,6.69457882]
[1750792479318,4.45817882,143.53,143.46,38.22]
[1750792479631,6.9647,143.51,143.48,6.9656]
[1750792480132,6.965,143.5,143.48,6.9656]
[1750792481429,6.965,143.5,143.47,6.9661]
[1750792482427,4.45817882,143.53,143.47,6.9661]
[1750792482730,10.18883753,143.52,143.47,6.9661]
[1750792482931,10.19114534,143.51,143.46,45.1865]
[1750792483226,5.37118778,143.5,143.46,45.1865]
[1750792483430,5.37118778,143.49,143.46,45.1865]
[1750792483631,4.45817882,143.51,143.46,45.1865]
[1750792483825,10.18824667,143.5,143.43,46.71397882]
[1750792484030,4.45817882,143.51,143.43,46.71397882]
[1750792484031,10.18824667,143.49,143.43,46.71397882]
[1750792484229,5.36846594,143.48,143.43,39.9494]
[1750792484433,5.36846594,143.47,143.43,39.9494]
[1750792484732,4.45817882,143.49,143.43,39.9494]
[1750792485133,5.36943625,143.48,143.43,44.40757882]
[1750792485427,6.9662,143.48,143.45,6.9669]
[1750792485632,4.45817882,143.51,143.45,6.9669]
[1750792485829,6.9666,143.47,143.43,39.9494]
[1750792486023,4.45817882,143.49,143.44,6.9676]
[1750792486224,5.34451234,143.48,143.43,37.66]
[1750792486432,4.45817882,143.49,143.43,37.66]
[1750792486633,6.9667,143.47,143.44,6.9676]
[1750792487035,4.45817882,143.49,143.43,37.66]
[1750792487227,4.45817882,143.47,143.4,42.11817882]
[1750792487433,10.15992892,143.46,143.4,37.66]
[1750792487732,6.9683,143.43,143.41,6.9692]
[1750792488235,4.81429001,143.46,143.4,37.66]
[1750792488537,5.3475502,143.45,143.4,42.11817882]
[1750792488733,6.9676,143.45,143.42,6.9688]
[1750792488938,6.9676,143.45,143.4,42.11817882]
[1750792490125,6.9676,143.45,143.42,6.9685]
[1750792490538,6.9676,143.45,143.43,6.9683]
[1750792491531,6.9671,143.46,143.43,6.9683]
[1750792495643,6.9666,143.47,143.44,6.9676]
[1750792497041,44.6261,143.48,143.42,4.45817882]
[1750792497246,37.66,143.48,143.42,4.45817882]
[1750792498047,44.6262,143.48,143.45,6.967]
[1750792498345,6.9662,143.48,143.45,6.967]
[1750792498541,37.68,143.51,143.44,4.45817882]
[1750792498848,37.68,143.51,143.44,42.13817882]
[1750792499037,4.45817882,143.52,143.45,2.4062]
[1750792499231,6.9652,143.5,143.47,6.9661]
[1750792499440,4.45817882,143.52,143.47,6.9661]
[1750792499743,5.36365075,143.51,143.47,6.9661]
[1750792499937,4.45817882,143.52,143.47,6.9661]
[1750792500138,5.36281097,143.51,143.47,6.9661]
[1750792500334,6.9656,143.49,143.47,6.9661]
[1750792500647,6.9656,143.49,143.46,6.9665]
[1750792504150,6.9659,143.48,143.46,6.9665]
[1750792504552,6.9657,143.49,143.46,6.9665]
[1750792504947,4.45817882,143.5,143.45,2.4062]
[1750792505246,4.45817882,143.48,143.41,37.66]
[1750792506049,4.45817882,143.46,143.41,37.66]
[1750792506243,4.45817882,143.46,143.41,44.629]
[1750792507243,6.9681,143.44,143.42,6.9688]
[1750792507753,4.45817882,143.46,143.42,6.9688]
[1750792508450,6.9674,143.45,143.42,6.9688]
[1750792508652,4.45817882,143.46,143.42,6.9688]
[1750792508852,6.9679,143.44,143.42,6.9688]
[1750792509254,37.66,143.47,143.41,42.11817882]
[1750792509460,4.45817882,143.48,143.41,50.67802034]
[1750792509754,4.45817882,143.48,143.44,6.9676]
[1750792509950,6.9668,143.47,143.44,6.9676]
[1750792510151,6.9668,143.47,143.41,50.67802034]
[1750792510458,6.9668,143.47,143.45,6.967]
[1750792510957,37.68,143.51,143.47,6.9661]
[1750792511454,6.9652,143.5,143.47,6.9661]